bitfinex-derivatives/quotes_SOLF0:USTF0_20250228
["timestamp","ask_amount","ask_price","bid_price","bid_amount"]
[1740721287562,0.04980333,126.83,126.81,0.0512604]
[1740721288054,34.74928131,126.82,126.81,0.0512604]
[1740721288254,34.74928131,126.82,126.73,207.0354]
[1740721288454,34.74928131,126.78,126.73,207.0354]
[1740721288658,34.74928131,126.78,126.73,4.1285]
[1740721288846,151.02892936,126.78,126.73,4.1285]
[1740721289247,34.74928131,126.78,126.77,7.896]
[1740721289450,0.0571045,126.77,126.74,0.05254882]
[1740721289656,0.0571045,126.77,126.73,4.1285]
[1740721289954,0.0571045,126.77,126.74,0.05381281]
[1740721291057,4.5e-06,126.77,126.74,0.05381281]
[1740721291453,4.5e-06,126.77,126.74,23.66381281]
[1740721291653,4.5e-06,126.77,126.75,23.61]
[1740721292050,4.5e-06,126.77,126.74,0.05381281]
[1740721292456,4.5e-06,126.77,126.74,23.66381281]
[1740721292659,4.5e-06,126.77,126.76,7.8966]
[1740721294958,4.5e-06,126.77,126.76,31.5566]
[1740721295456,3.9528,126.89,126.76,218.61]
[1740721295756,200.48213156,127.0,126.78,23.61]
[1740721295955,34.74928131,126.9,126.8,23.61]
[1740721296151,34.74928131,126.9,126.81,27.483]
[1740721296464,137.69292936,126.9,126.81,27.483]
[1740721296662,0.05148385,126.87,126.84,0.05745503]
[1740721296862,0.05148385,126.87,126.86,7.8904]
[1740721297563,8.385e-05,126.87,126.86,22.3304]
[1740721298562,8.385e-05,126.87,126.86,14.44]
[1740721299165,8.385e-05,126.87,126.85,7.8909]
[1740721299668,8.385e-05,126.87,126.86,7.8904]
[1740721300966,8.385e-05,126.87,126.85,7.8908]
[1740721301163,8.385e-05,126.87,126.84,0.05745503]
[1740721301966,8.385e-05,126.87,126.86,7.8904]
[1740721302166,8.385e-05,126.87,126.84,0.05745503]
[1740721302372,34.74928131,126.86,126.84,0.05745503]
[1740721302563,34.74928131,126.85,126.84,0.05745503]
[1740721302763,34.74928131,126.85,126.76,203.1728]
[1740721302966,34.74928131,126.81,126.77,14.42]
[1740721303160,34.74928131,126.79,126.77,14.42]
[1740721303365,102.94364805,126.85,126.73,110.61718175]
[1740721303366,34.74928131,126.78,126.75,7.8971]
[1740721303664,34.74928131,126.78,126.74,86.5264972]
[1740721303863,7.8926,126.83,126.76,7.8966]
[1740721304066,0.05779403,126.77,126.76,7.8966]
[1740721304266,34.74928131,126.78,126.76,7.8966]
[1740721304571,0.05582626,126.78,126.77,7.8959]
[1740721305971,0.05582626,126.78,126.75,0.04964751]
[1740721306162,0.05582626,126.78,126.76,7.8965]
[1740721306368,34.74928131,126.77,126.75,0.04964751]
[1740721306771,137.69292936,126.77,126.75,0.04964751]
[1740721307472,137.69292936,126.77,126.75,7.94664751]
[1740721308576,137.69292936,126.77,126.75,0.04964751]
[1740721308975,34.74928131,126.76,126.75,0.04964751]
[1740721309379,0.05582626,126.78,126.75,0.04964751]
[1740721309593,34.74928131,126.76,126.75,0.04964751]
[1740721309772,34.74928131,126.76,126.71,0.93824613]
[1740721309973,34.74928131,126.75,126.73,7.8981]
[1740721310172,34.74928131,126.75,126.71,0.93824613]
[1740721310474,137.69292936,126.75,126.71,0.93824613]
[1740721310675,34.74928131,126.74,126.71,0.93824613]
[1740721310871,0.05027964,126.74,126.72,0.05733623]
[1740721311077,7.964e-05,126.74,126.72,0.05733623]
[1740721311476,7.964e-05,126.74,126.73,7.8985]
[1740721314481,7.964e-05,126.74,126.73,16.0139]
[1740721315778,90.65292769,126.8,126.79,7.8947]
[1740721315974,125.402209,126.8,126.79,7.8947]
[1740721316179,90.65292769,126.8,126.79,7.8947]
[1740721316481,90.65292769,126.8,126.73,8.1154]
[1740721316681,34.74928131,126.78,126.73,8.1154]
[1740721316977,34.7991121,126.78,126.76,7.8961]
[1740721317183,125.45203979,126.78,126.76,7.8961]
[1740721317479,125.45203979,126.78,126.77,7.896]
[1740721319478,125.45203979,126.78,126.75,0.05254115]
[1740721319677,34.74928131,126.77,126.76,7.8964]
[1740721319883,7.86992219,126.77,126.75,0.05254115]
[1740721320081,125.402209,126.77,126.75,0.05254115]
[1740721320283,125.402209,126.77,126.76,7.8961]
[1740721320483,0.04983079,126.78,126.75,0.05254115]
[1740721320680,3.079e-05,126.78,126.75,0.05254115]
[1740721320876,3.079e-05,126.78,126.77,7.896]
[1740721321184,3.079e-05,126.78,126.77,22.316]
[1740721321572,3.079e-05,126.78,126.77,14.42]
[1740721322282,3.079e-05,126.78,126.77,22.316]
[1740721323081,3.079e-05,126.78,126.77,14.42]
[1740721323282,3.079e-05,126.78,126.75,0.05254115]
[1740721323582,3.079e-05,126.78,126.76,7.8964]
[1740721323877,3.079e-05,126.78,126.75,0.05254115]
[1740721324082,3.079e-05,126.78,126.77,7.896]
[1740721325583,3.079e-05,126.78,126.77,11.7327]
[1740721326080,3.079e-05,126.78,126.77,7.896]
[1740721326275,3.079e-05,126.78,126.76,7.8964]
[1740721326480,3.079e-05,126.78,126.75,195.05254115]
[1740721326781,3.079e-05,126.78,126.76,7.8962]
[1740721326987,3.079e-05,126.78,126.75,195.05254115]
[1740721327578,3.079e-05,126.78,126.75,218.66254115]
[1740721327773,3.079e-05,126.78,126.76,3.01004064]
[1740721327980,3.079e-05,126.78,126.77,32.93825585]
[1740721328184,3.9581,126.89,126.77,25.04225585]
[1740721328376,22.60668131,126.87,126.78,1.57753588]
[1740721328582,22.60668131,126.87,126.84,7.8912]
[1740721328783,3.9581,126.89,126.8,23.61]
[1740721328981,22.60668131,126.87,126.81,29.00491212]
[1740721329182,22.60668131,126.87,126.81,27.5733]
[1740721329486,0.05352509,126.85,126.83,0.05498887]
[1740721329875,22.60668131,126.84,126.83,0.05498887]
[1740721330185,102.34744132,126.98,126.83,0.05498887]
[1740721330186,42.2143176,127.0,126.83,218.71498887]
[1740721330381,22.60668131,126.97,126.84,1.43183828]
[1740721330575,22.60668131,126.95,126.85,5.58426535]
[1740721330777,22.60668131,126.93,126.86,43.69634106]
[1740721330980,3.8257,126.97,126.87,3.00737967]
[1740721331185,3.8257,126.97,126.91,23.61]
[1740721331186,22.60668131,126.96,126.91,23.61]
[1740721331487,9.824e-05,126.93,126.91,23.66629074]
[1740721332087,9.824e-05,126.93,126.92,31.4967]
[1740721332288,9.824e-05,126.93,126.92,36.77494227]
[1740721332778,9.824e-05,126.93,126.92,60.41494227]
[1740721332982,9.824e-05,126.93,126.92,36.80494227]
[1740721333286,9.824e-05,126.93,126.92,60.41494227]
[1740721333480,9.824e-05,126.93,126.92,60.41455192]
[1740721333685,7.896,127.07,127.01,7.8809]
[1740721333885,22.60668131,127.04,127.01,22.3009]
[1740721334087,22.60668131,127.04,127.01,14.42]
[1740721334493,7.896,127.07,127.01,14.42]
[1740721334686,22.60668131,127.04,127.01,22.3005]
[1740721334884,22.6567289,127.05,127.03,0.05441379]
[1740721335286,0.05004759,127.05,127.04,7.8792]
[1740721338189,4.759e-05,127.05,127.04,7.8792]
[1740721338790,4.759e-05,127.05,127.04,32.92819319]
[1740721339192,4.759e-05,127.05,127.04,9.30819319]
[1740721339991,4.759e-05,127.05,127.04,7.8792]
[1740721341388,4.759e-05,127.05,127.04,32.92820227]
[1740721342081,4.759e-05,127.05,127.04,56.53800532]
[1740721344192,7.7387,127.24,127.04,48.65880532]
[1740721344393,4.0384,127.23,127.08,23.61]
[1740721344688,4.0384,127.23,127.09,46.2296]
[1740721344987,94.69147352,127.23,127.18,7.8705]
[1740721345294,94.69147352,127.23,127.19,14.4]
[1740721345489,0.05404522,127.22,127.19,0.05049083]
[1740721345992,90.70711874,127.22,127.17,14.4]
[1740721346882,90.70711874,127.22,127.17,1.861]
[1740721347085,90.70711874,127.22,127.13,228.52]
[1740721347283,90.65307352,127.22,127.18,0.05356117]
[1740721347486,0.05502864,127.19,127.13,228.52]
[1740721347888,90.70810216,127.19,127.13,228.52]
[1740721348092,90.70810216,127.19,127.13,236.3932]
[1740721348592,90.70810216,127.19,127.15,0.05272127]
[1740721349692,98.57800216,127.19,127.13,14.38]
[1740721349893,90.70810216,127.19,127.13,14.38]
[1740721350894,90.70810216,127.19,127.15,0.05376045]
[1740721351394,0.05502864,127.19,127.05,214.02]
[1740721351589,90.65307352,127.19,127.06,15.80874637]
[1740721351895,90.65307352,127.19,127.06,14.38]
[1740721352295,90.65307352,127.19,127.06,37.99]
[1740721352506,0.05403907,127.14,127.11,0.05302466]
[1740721352798,0.05403907,127.14,127.08,7.8765]
[1740721352984,90.70711259,127.14,127.11,0.05916895]
[1740721354095,90.70711259,127.14,127.11,7.93386895]
[1740721354296,0.05403907,127.14,127.11,0.05916895]
[1740721354694,0.05403907,127.14,127.12,7.8741]
[1740721355197,0.05403907,127.14,127.11,0.05916895]
[1740721355491,90.70711259,127.14,127.11,7.93386895]
[1740721355893,90.70711259,127.14,127.11,23.66916895]
[1740721355894,0.05403907,127.14,127.11,23.66916895]
[1740721356193,4.0046,127.21,127.12,27.3759]
[1740721356394,90.65307352,127.21,127.17,7.871]
[1740721356588,4.0349,127.23,127.19,23.61]
[1740721356790,7.8884,127.31,127.19,23.61]
[1740721357003,7.8637,127.3,127.22,7.8676]
[1740721357191,90.65307352,127.3,127.22,23.61]
[1740721357387,0.05861857,127.27,127.25,0.05979226]
[1740721357594,0.05861857,127.27,127.25,14.43979226]
[1740721357993,90.71169209,127.27,127.25,14.43979226]
[1740721358191,0.05861857,127.27,127.25,14.43979226]
[1740721358897,4.0349,127.34,127.25,14.43979226]
[1740721359088,94.68797352,127.34,127.25,37.99]
[1740721359289,94.68797352,127.34,127.29,7.8637]
[1740721359496,94.68797352,127.34,127.25,37.99]
[1740721359692,94.68797352,127.34,127.26,1.57158573]
[1740721359897,94.68797352,127.34,127.28,7.8642]
[1740721360093,0.05785245,127.31,127.29,0.05260811]
[1740721360992,0.05785245,127.31,127.26,1.57158573]
[1740721360993,90.71092597,127.31,127.26,1.57158573]
[1740721362298,90.71092597,127.31,127.27,0.05339012]
[1740721363999,90.71092597,127.31,127.25,14.38]
[1740721364198,82.59782597,127.31,127.2,14.36]
[1740721364502,82.53997352,127.31,127.2,14.36]
[1740721364895,82.53997352,127.31,127.23,7.867]
[1740721365091,0.05508361,127.27,127.24,0.05785914]
[1740721365499,82.59505713,127.27,127.24,0.05785914]
[1740721365897,0.05508361,127.27,127.24,0.05785914]
[1740721366501,0.05508361,127.27,127.26,7.8656]
[1740721367003,82.59505713,127.27,127.24,0.05785914]
[1740721367194,82.59505713,127.27,127.2,15.93232704]
[1740721367597,82.59505713,127.27,127.24,7.8663]
[1740721367803,82.59505713,127.27,127.2,15.93232704]
[1740721368597,82.59505713,127.27,127.22,0.05578749]
[1740721368805,82.59505713,127.27,127.24,7.8664]
[1740721369401,82.59505713,127.27,127.22,0.05578749]
[1740721369602,0.05508361,127.27,127.22,0.05578749]
[1740721369801,0.05508361,127.27,127.26,7.8656]
[1740721370902,8.361e-05,127.27,127.26,7.8656]
[1740721372304,82.54005713,127.27,127.25,0.05155394]
[1740721373202,82.54005713,127.27,127.2,1.57232704]
[1740721373402,82.54005713,127.27,127.2,15.93232704]
[1740721373905,82.54005713,127.27,127.24,7.8664]
[1740721374098,82.54005713,127.27,127.2,15.93232704]
[1740721374299,82.54005713,127.27,127.2,1.57232704]
[1740721374498,3.8408,127.26,127.22,0.0603695]
[1740721374904,86.38077352,127.26,127.22,0.0603695]
[1740721376908,82.53997352,127.26,127.25,7.8662]
[1740721377210,8.361e-05,127.27,127.22,0.0603695]
[1740721377410,8.361e-05,127.27,127.22,23.6703695]
[1740721377609,8.361e-05,127.27,127.26,7.8656]
[1740721377809,8.361e-05,127.27,127.26,14.36]
[1740721378007,8.361e-05,127.27,127.26,22.2256]
[1740721379007,8.361e-05,127.27,127.26,14.36]
[1740721379410,8.361e-05,127.27,127.26,15.7865329]
[1740721379609,4.3556,127.36,127.26,62.9765329]
[1740721379912,58.51117352,127.36,127.27,2.99799514]
[1740721380108,54.68637352,127.36,127.28,1.57133878]
[1740721380304,54.68637352,127.36,127.29,1.4262379]
[1740721380508,54.68637352,127.36,127.31,7.8622]
[1740721380806,0.05329071,127.34,127.31,0.05902733]
[1740721382508,54.73966423,127.34,127.31,0.05902733]
[1740721382806,4.0348,127.33,127.27,233.14390953]
[1740721383010,8.1514,127.33,127.27,213.74]
[1740721383209,58.72117352,127.33,127.27,213.74]
[1740721383707,58.72117352,127.33,127.26,14.36]
[1740721383909,0.0500751,127.31,127.29,0.05811512]
[1740721384108,0.0500751,127.31,127.24,86.5264972]
[1740721384312,40.37644862,127.31,127.24,86.5264972]
[1740721384509,48.23894862,127.31,127.24,86.5264972]
[1740721385105,7.8638,127.29,127.24,86.5264972]
[1740721385306,7.8638,127.29,127.26,0.05041475]
[1740721385511,40.32637352,127.29,127.22,33.74390953]
[1740721385813,0.05368676,127.28,127.22,33.74390953]
[1740721386015,0.05368676,127.28,127.15,105.93040673]
[1740721386216,40.38006028,127.28,127.19,228.02]
[1740721386511,40.32637352,127.28,127.19,213.68]
[1740721386713,0.0544978,127.25,127.22,0.05849689]
[1740721387108,0.0544978,127.25,127.15,114.01210673]
[1740721387109,0.0544978,127.25,127.15,105.93040673]
[1740721387416,40.32637352,127.25,127.15,86.5264972]
[1740721387616,4.173,127.24,127.15,86.5264972]
[1740721388115,44.49937352,127.24,127.14,86.5264972]
[1740721388316,0.05290509,127.21,127.18,0.05282293]
[1740721388818,40.37927861,127.21,127.18,0.05282293]
[1740721389614,40.37927861,127.21,127.19,7.8694]
[1740721389615,0.05290509,127.21,127.19,7.8694]
[1740721389910,0.05290509,127.21,127.2,14.34]
[1740721391016,40.37927861,127.21,127.2,14.34]
[1740721391217,0.05290509,127.21,127.2,14.34]
[1740721393015,7.9653,127.29,127.2,14.34]
[1740721393222,48.29167352,127.29,127.2,18.2791]
[1740721393714,48.29167352,127.29,127.21,7.8685]
[1740721393919,48.29167352,127.29,127.2,18.2791]
[1740721394120,0.05936179,127.26,127.24,0.0518042]
[1740721394315,40.38573531,127.26,127.24,0.0518042]
[1740721395515,84.35068429,127.45,127.24,47.2418042]
[1740721395718,8.3785,127.43,127.25,1.42680187]
[1740721395918,8.3785,127.43,127.26,1.42628909]
[1740721396119,48.70487352,127.43,127.28,23.61]
[1740721396619,48.70487352,127.43,127.29,29.02576847]
[1740721396814,0.05734134,127.37,127.34,7.91450453]
[1740721397018,0.05734134,127.37,127.35,14.34]
[1740721397218,42.2143176,127.44,127.35,14.34]
[1740721397515,40.32637352,127.44,127.35,14.34]
[1740721397719,40.32637352,127.44,127.36,7.8594]
[1740721398225,40.32637352,127.44,127.35,14.34]
[1740721398423,0.04958788,127.41,127.39,0.05843918]
[1740721398625,0.04958788,127.41,127.35,14.34]
[1740721398819,7.8574,127.4,127.3,7.863]
[1740721399121,4.0027,127.39,127.31,15.76612289]
[1740721399318,11.8603,127.39,127.31,14.34]
[1740721399523,52.18667352,127.39,127.31,14.34]
[1740721399823,0.05170107,127.36,127.34,0.05162535]
[1740721400218,0.05170107,127.36,127.28,3.7795]
[1740721400420,26.03807459,127.36,127.31,86.5264972]
[1740721400615,25.98637352,127.36,127.31,86.5264972]
[1740721401020,25.98637352,127.36,127.31,94.3889972]
[1740721401221,25.98637352,127.36,127.31,86.5264972]
[1740721401524,0.05713049,127.35,127.32,0.05392495]
[1740721401720,0.05713049,127.35,127.32,1.47996523]
[1740721402029,26.04350401,127.35,127.32,1.47996523]
[1740721402626,190.0,127.42,127.32,1.47996523]
[1740721402923,25.98637352,127.42,127.35,7.8595]
[1740721403131,25.98637352,127.42,127.36,14.34]
[1740721403427,25.98637352,127.42,127.39,7.8576]
[1740721403827,0.05693839,127.42,127.39,7.91295315]
[1740721404029,0.05693839,127.42,127.4,7.8569]
[1740721404725,7.8515,127.49,127.41,7.8563]
[1740721404923,7.8515,127.49,127.39,0.05535315]
[1740721404924,33.83787352,127.49,127.39,0.05535315]
[1740721405126,33.83787352,127.49,127.39,1.42500943]
[1740721405422,25.98637352,127.49,127.41,7.8563]
[1740721405926,0.05945868,127.46,127.44,0.0511922]
[1740721406325,26.0458322,127.46,127.44,0.0511922]
[1740721406920,0.05945868,127.46,127.44,0.0511922]
[1740721407326,0.05945868,127.46,127.44,9.33027363]
[1740721407526,0.05945868,127.46,127.44,11.7635922]
[1740721407727,0.05945868,127.46,127.44,3.9091922]
[1740721407921,3.9108,127.54,127.45,1.42449643]
[1740721408122,29.89717352,127.54,127.45,1.42449643]
[1740721409018,0.05244687,127.51,127.48,7.91051708]
[1740721409222,0.05244687,127.51,127.48,0.05891708]
[1740721409419,26.03882039,127.51,127.48,0.05891708]
[1740721411531,24.46970067,127.51,127.42,14.32]
[1740721411927,24.4172538,127.51,127.42,14.32]
[1740721412226,24.4172538,127.51,127.43,1.4248173]
[1740721412622,0.0527372,127.48,127.46,0.05353412]
[1740721412829,0.0527372,127.48,127.47,7.8526]
[1740721413028,0.0527372,127.48,127.47,9.27698426]
[1740721413423,24.469991,127.48,127.46,0.05353412]
[1740721414231,24.469991,127.48,127.4,19.05804577]
[1740721414633,24.469991,127.48,127.4,8.55644577]
[1740721414835,24.4172538,127.48,127.4,0.69964577]
[1740721415536,0.05241591,127.45,127.43,0.04970047]
[1740721416134,24.46966971,127.45,127.43,0.04970047]
[1740721423139,24.46966971,127.45,127.4,0.69964577]
[1740721423342,24.46966971,127.45,127.4,8.55614577]
[1740721424240,24.46966971,127.45,127.38,14.32]
[1740721424241,24.46966971,127.45,127.38,7.8581]
[1740721424443,24.46966971,127.45,127.41,0.05549233]
[1740721424640,24.4172538,127.45,127.36,1.42552849]
[1740721424942,0.06027923,127.42,127.39,0.05585549]
[1740721425440,24.47753303,127.42,127.39,0.05585549]
[1740721426446,24.47753303,127.42,127.4,7.8568]
[1740721427346,24.47753303,127.42,127.39,0.05585549]
[1740721430747,24.47753303,127.42,127.41,7.8563]
[1740721432753,24.47753303,127.42,127.4,7.8566]
[1740721435752,24.47753303,127.42,127.41,7.8563]
[1740721436758,0.06027923,127.42,127.41,7.8563]
[1740721436957,8.2443,127.5,127.39,0.05585549]
[1740721437154,32.6615538,127.5,127.47,7.8526]
[1740721437355,24.4172538,127.5,127.42,37.93]
[1740721437654,24.4172538,127.5,127.43,5.51453889]
[1740721437855,24.4172538,127.5,127.43,4.0897]
[1740721438258,0.05898623,127.48,127.46,7.8527]
[1740721438658,24.47624003,127.48,127.46,7.8527]
[1740721438854,0.05898623,127.48,127.4,14.86210653]
[1740721439055,3.9707,127.47,127.38,101.38860373]
[1740721439260,24.36096827,127.48,127.39,17.85729232]
[1740721439461,24.36096827,127.48,127.4,16.28731038]
[1740721439760,24.36096827,127.48,127.41,16.28731038]
[1740721439960,24.36096827,127.48,127.42,1.42520385]
[1740721440156,0.05499641,127.46,127.43,0.04975154]
[1740721440656,24.41596468,127.46,127.43,0.04975154]
[1740721441163,24.41596468,127.46,127.43,7.90435154]
[1740721441363,24.41596468,127.46,127.43,0.04975154]
[1740721441563,24.41596468,127.46,127.44,7.8543]
[1740721442163,24.41596468,127.46,127.43,0.04975154]
[1740721443765,24.41596468,127.46,127.41,7.8561]
[1740721444667,24.41596468,127.46,127.4,7.8567]
[1740721444866,24.41596468,127.46,127.39,1.56998194]
[1740721445068,24.41596468,127.46,127.42,0.05988323]
[1740721446366,24.41596468,127.46,127.42,7.91558323]
[1740721446562,24.41596468,127.46,127.43,14.86210653]
[1740721446765,24.41596468,127.46,127.44,14.86210653]
[1740721446965,12.61196468,127.46,127.43,14.86210653]
[1740721447164,4.169,127.52,127.44,14.86210653]
[1740721447359,0.20806468,127.52,127.45,14.86210653]
[1740721447566,0.20806468,127.52,127.46,14.86210653]
[1740721447868,0.20806468,127.52,127.47,14.86210653]
[1740721448060,0.20806468,127.52,127.48,14.86210653]
[1740721448263,0.05412979,127.51,127.48,0.05263423]
[1740721448768,0.26219447,127.51,127.48,0.05263423]
[1740721448960,0.05412979,127.51,127.45,14.65404185]
[1740721449165,7.90452979,127.51,127.42,18.95203255]
[1740721449464,7.8504,127.51,127.42,18.95203255]
[1740721449660,197.8512,127.5,127.39,23.72748194]
[1740721449865,4.0398,127.49,127.39,15.86998194]
[1740721450061,4.0398,127.49,127.43,0.05688628]
[1740721450262,0.05343636,127.46,127.43,0.05688628]
[1740721453774,0.05343636,127.46,127.39,15.86998194]
[1740721454968,0.05343636,127.46,127.41,0.02370525]
[1740721455975,194.3602,127.55,127.41,0.02370525]
[1740721456175,4.3602,127.55,127.41,1.56973549]
[1740721456370,4.0432,127.55,127.42,1.42490346]
[1740721456571,10.79913156,127.59,127.43,5.61008913]
[1740721456778,14.58653156,127.59,127.44,2.99426943]
[1740721457074,14.58653156,127.59,127.45,2.9941463]
[1740721457272,0.05471992,127.53,127.5,0.05148591]
[1740721457577,7.8465,127.57,127.47,7.8525]
[1740721457778,0.05459282,127.53,127.5,0.057731]
[1740721458073,14.58653156,127.59,127.46,18.4464]
[1740721458277,0.0529001,127.53,127.5,0.05804623]
[1740721458576,190.0,127.58,127.46,18.4464]
[1740721458776,4.1044,127.59,127.5,0.05267654]
[1740721458777,0.05224178,127.53,127.5,0.05267654]
[1740721458977,3.8793,127.58,127.46,26.2996]
[1740721459277,0.05699143,127.53,127.5,0.05419668]
[1740721459474,0.05699143,127.53,127.46,18.4464]
[1740721459675,0.05699143,127.53,127.5,0.05319763]
[1740721464282,0.05699143,127.53,127.5,7.90379763]
[1740721464778,0.05699143,127.53,127.51,7.85]
[1740721464976,0.05699143,127.53,127.5,0.05319763]
[1740721466070,0.05699143,127.53,127.5,7.90369763]
[1740721467172,0.05699143,127.53,127.51,7.8501]
[1740721467580,0.05699143,127.53,127.5,0.05319763]
[1740721467784,194.2615,127.64,127.5,0.05319763]
[1740721467978,8.1568,127.64,127.51,1.56850443]
[1740721468173,8.1568,127.64,127.57,7.8461]
[1740721468377,7.7879,127.64,127.52,37.91]
[1740721468579,7.7879,127.64,127.53,5.40126978]
[1740721468882,0.05678457,127.6,127.57,7.90474877]
[1740721469286,0.05678457,127.6,127.57,0.05864877]
[1740721469975,23.57678457,127.6,127.52,1.56838143]
[1740721470176,190.0,127.59,127.47,86.5264972]
[1740721470383,3.954,127.58,127.47,86.5264972]
[1740721470582,7.8473,127.56,127.47,94.3785972]
[1740721470783,7.8473,127.56,127.47,86.5264972]
[1740721470983,4.0469,127.57,127.47,86.5264972]
[1740721471185,0.05997506,127.53,127.5,0.05416282]
[1740721474691,0.05997506,127.53,127.51,7.8502]
[1740721475287,0.05997506,127.53,127.5,7.90476282]
[1740721475489,0.05997506,127.53,127.5,0.05416282]
[1740721475686,4.0469,127.62,127.51,14.28]
[1740721475992,4.0469,127.62,127.56,7.8467]
[1740721476191,4.0469,127.62,127.52,3.8338]
[1740721476387,4.0469,127.62,127.53,4.0518]
[1740721476691,4.0469,127.62,127.56,7.847]
[1740721476893,0.05887471,127.59,127.56,7.89691036]
[1740721477087,0.05887471,127.59,127.57,7.8464]
[1740721477289,0.05887471,127.59,127.56,0.04991036]
[1740721477793,0.05887471,127.59,127.57,7.8465]
[1740721478803,0.05887471,127.59,127.56,0.04991036]
[1740721479096,0.05887471,127.59,127.58,7.8459]
[1740721479290,0.05887471,127.59,127.56,0.04991036]
[1740721479692,0.05887471,127.59,127.57,7.8464]
[1740721480392,0.05887471,127.59,127.56,0.04991036]
[1740721480597,0.05887471,127.59,127.56,7.89681036]
[1740721481993,190.0,127.58,127.46,164.72981957]
[1740721482194,193.8331,127.57,127.46,120.77333378]
[1740721482498,204.28,127.56,127.46,105.69453519]
[1740721482694,204.28,127.56,127.46,86.5264972]
[1740721482894,7.849,127.53,127.47,7.8526]
[1740721483092,190.0523283,127.52,127.5,0.05288983]
[1740721483400,190.0523283,127.52,127.46,86.5264972]
[1740721484099,190.0523283,127.52,127.49,7.8514]
[1740721484499,190.0523283,127.52,127.49,7.88405914]
[1740721484697,190.0523283,127.52,127.49,0.03265914]
[1740721485203,0.0523283,127.52,127.49,0.03265914]
[1740721487002,0.0523283,127.52,127.41,1.56973549]
[1740721487200,7.8496,127.52,127.44,7.8543]
[1740721487802,190.0,127.51,127.41,1.56973549]
[1740721488103,0.05808208,127.47,127.4,108.7530972]
[1740721488309,0.05808208,127.47,127.4,94.4730972]
[1740721489609,0.05808208,127.47,127.46,7.8532]
[1740721491609,0.05808208,127.47,127.4,7.9466]
[1740721492120,0.05808208,127.47,127.41,1.42496213]
[1740721492716,0.05808208,127.47,127.44,7.854]
[1740721492909,0.05808208,127.47,127.4,7.9466]
[1740721493215,0.05808208,127.47,127.41,1.4249811]
[1740721493713,190.0,127.53,127.41,1.4249811]
[1740721493916,198.3609,127.6,127.49,7.851]
[1740721494214,198.3609,127.6,127.44,14.28]
[1740721494215,8.3609,127.6,127.44,14.28]
[1740721494411,8.3609,127.6,127.48,7.8518]
[1740721494814,7.8472,127.56,127.48,7.8518]
[1740721495012,0.0511303,127.55,127.53,0.05808208]
[1740721500315,0.0511303,127.55,127.47,3.93]
[1740721500524,190.0,127.58,127.44,86.5264972]
[1740721500525,190.0,127.57,127.44,86.5264972]
[1740721501520,0.05443719,127.52,127.43,3.93]
[1740721501720,190.0,127.57,127.44,1.42479903]
[1740721501916,7.8474,127.56,127.5,7.8507]
[1740721502117,0.06010434,127.52,127.5,7.8507]
[1740721502319,0.06010434,127.52,127.43,3.93]
[1740721502624,14.28,127.58,127.43,3.93]
[1740721502929,7.8504,127.51,127.45,7.8537]
[1740721503223,14.28,127.58,127.43,3.93]
[1740721503525,3.9865,127.5,127.42,3.9279]
[1740721503725,193.9865,127.5,127.41,88.09623269]
[1740721503919,201.8378,127.5,127.43,7.8549]
[1740721504126,0.04957363,127.47,127.41,88.09623269]
[1740721504323,0.04957363,127.47,127.41,86.5264972]
[1740721505521,7.8545,127.44,127.41,78.6175972]
[1740721505727,190.0,127.46,127.41,74.2131972]
[1740721506024,0.05838064,127.45,127.41,74.2131972]
[1740721506724,7.8546,127.44,127.37,7.8586]
[1740721506920,0.05838064,127.45,127.34,130.48298299]
[1740721507121,0.04982189,127.4,127.34,130.48298299]
[1740721507323,0.4217,127.49,127.38,0.0498]
[1740721507625,190.0,127.5,127.36,1.42556832]
[1740721507823,190.0,127.5,127.36,2.99592007]
[1740721508021,190.0,127.5,127.37,1.42556832]
[1740721508522,0.05185435,127.45,127.42,0.04982189]
[1740721508923,0.05185435,127.45,127.38,3.8759]
[1740721509226,0.05185435,127.45,127.42,0.04982189]
[1740721510429,23.59185435,127.45,127.42,0.04982189]
[1740721510922,23.59185435,127.45,127.33,26.99455005]
[1740721510923,7.8551,127.43,127.33,26.99455005]
[1740721511123,7.8551,127.43,127.33,7.8029]
[1740721511427,190.0,127.42,127.33,11.7294]
[1740721511623,190.0,127.42,127.33,3.8682]
[1740721512026,0.05097481,127.39,127.34,7.8601]
[1740721512921,0.05097481,127.39,127.33,7.8611]
[1740721513127,0.05097481,127.39,127.29,3.8682]
[1740721513328,0.05097481,127.39,127.25,130.48298299]
[1740721513329,7.8589,127.37,127.25,130.48298299]
[1740721513635,190.0,127.38,127.25,130.48298299]